Workbook

Sheet Instruction
B1: Welcome To The Comparison of Beef Natural Service to Estrus Synchronization and Artificial Insemination
B2: This Workbook includes a number of spreadsheets that allows YOU, the reader, to compare the expected results from the use of estrus synchronization and artificial insemination (AI) with that of natural service for a beef herd.
B3: Workbook Tabs: • ‘Instruction’: Overview of the workings of this workbook • ‘Intro’: the purpose of this partial budgeting tool, considerations in the analysis, and a description of the 10 breeding systems selected for comparison purposes • ‘Inputs’: the input spreadsheet allowing you to provide a description of your beef operation (breeding size, weaning weight, bull costs, labor costs, semen costs, and pharmaceutical costs) and allows you to select a protocol from a series of 10 breeding systems for comparison. Based on the selected breeding system, a series of target performances are suggested. You can use these target performances as a guideline for estimating the performance of your herd - OR - you can adjust these guidelines to reflect YOUR own experience or best estimate. All input information is highlighted in BLUE. Upon completion of your input, press the 'proceed to Partial Budget Analysis Results' button. The results look at key input factors required under natural service and how these may change. Factors that impact revenue: o Increases in productivity resulting from changes in weaning weights and weaning rates; o Decreases resulting from fewer culled bulls and open cows; Factors Impacting costs: o Bulls are a major cost factor (price and maintenance). Decreases as a result of requiring fewer bulls (feed & yardage, veterinarian costs, maintenance...); fewer replacement animals needed with improved pregnancy rates; labour requirements for heat detection o Increases as a result of semen costs, AI technician, labour with handling cattle; cost of drugs and supplies for the AI treatments, AI equipment maintenance and depreciation. • ‘PerformancebySystem’: provides a guideline of recommended performance targets for each breeding system under consideration.
B4: Breeding Systems: Considerable research and field data support the use and refinement of protocols. These protocols draw on those recommended by the Beef Reproduction Task Force: Beef Cow Protocols - 2018 (www.beefrepro.unl.edu/resources). Analysis focuses on ten proven systems which can be categorized to three groupings based on the general requirements for estrus detection: 1) estrus detection over a 7-8 day period following synchronization treatment (4 options), 2) estrus detection over a 3 day period with timed AI of all remaining animals not previously detected in estrus (clean-up timed AI) (3 options) 3) strict fixed-time AI following the prescribed hormonal treatment (3 options). Hormones recommended in the protocols include prostaglandin F2a (PG), gonadotropin releasing hormone (GnRH), and progestins (like MGA (melengestrol acetate) or CIDR (progesterone)).

Sheet Intro
A2: Partial Budget Comparison of Natural Service vs Synchronized AI Programs for Beef Cattle
A3: Proposed Comparison: | B3: This partial budget is designed as a tool to help producers and industry stakeholders compare between options of use of artificial insemination (AI) to that of using natural service bulls for cow-calf operations. Although AI is widely used in the dairy industry, the current standard practice in beef is that of relying solely on bull breeding. There are trade-offs when comparing the breeding programs, specifically, differences in costs, conception rates and synchronization methods.
A4: Considerations: | B4: Protocol comparisons (based primarily on those recommended by the Beef Reproduction Task Force: Beef Cow Protocols - 2018, www.beefrepro.unl.edu/resource) look at three protocol groupings based on time required for estrus detection: estrus detection and AI; AI for 3 days after observed estrus and then fixed-timed AI of all nonresponders (cleanup-timed AI); or strict, fixed-time AI. Advantages of synchronized AI may include: • Shortening and concentrating the calving and breeding season • Increasing the time needed for postpartum recovery in cows and first-calf heifers • The ability to induce anestrous cows and prepubertal heifers to cycle • Moving the breeding season to an earlier time of year • Introducing new genetics into the herd • Improving the uniformity of a calf crop (weight, color, disposition) • Increasing calf performance and weaning weights with earlier birthdates
A5: Breeding Systems | B5: a. Natural Service - herd bulls limited on the number of cows serviced during the breeding season 1) Estrus Detection b. Select Synch- Gonadotropin-releasing hormone (GnRH) is injected intramuscular (i.m.) day 0 and Prostaglandin (PG) is injected i.m. day 7. Cows are observed for estrus and AI days 6-13.
B7: c. Select Synch +Controlled internal drug release (CIDR) - GnRH is injected i.m. day 0, PG is injected i.m. day 7, and a CIDR is inserted intravaginal at the time of GnRH injection and is removed at the time of PG injection. Cows are observed for estrus and AI days 7-13.
B9: d. Prostaglandin F2a (PG) 6-day CIDR - PG on day 0. Heat detect and AI days 0 to 3. Insert CIDR and give GnRH to nonresponders on day 3 and remove it on day 9 along with PG i.m. Heat detect and AI days 9 to 12.
B11: e. Melengestrol acetate (MGA)+PG- for use with heifers - MGA is fed days 1-14 and PG is injected i.m. day 33. Heifers are observed for estrus and AI days 33-39.
B13: 2) Estrus Detection with Cleanup AI a. Select Synch +Timed AI (TAI) - GnRH is injected i.m. day 0 and PG is injected i.m. day 7. Cows are observed for estrus and AI days 6-10 followed by GnRH and TAI day 10 for all cows not AI by day 10.
B15: b. Select Synch+CIDR+TAI - GnRH is injected i.m. day 0, PG is injected i.m. day 7, and a CIDR is inserted intravaginal at the time of GnRH injection and is removed at the time of PG injection. Cows and heifers are observed for estrus and AI days 7-10 followed by GnRH and TAI day 10 for all cows and heifers not AI by day 10.
B17: c. PG 6-day CIDR +TAI- PG on day 0. Heat detect & AI days 0 to 3. Insert CIDR and give GnRH to non-responders on day 3 and remove it on day 9 along with PG i.m. Heat detect and AI days 9 to 12. TAI non-responders 72 - 84 hr after CIDR removal with GnRH at AI.
B19: 3) Fixed-time AI a. 7-day CO-Synch+CIDR - GnRH is administered at CIDR insertion on day 0, followed by CIDR removal, and PGF2α. Insemination is performed 56 (heifers) - 66 (cows) hours after CIDR removal and PGF2α, with GnRH administered at AI.
B21: b. 5-day CO-Synch+CIDR- GnRH is administered at CIDR insertion on day 0, followed by CIDR removal, and PG i.m. on day 5. A second injection of PG is administered 8 ± 2 hours after first PG. Insemination is performed 72 hours after CIDR removal , with GnRH administered at AI.
B23: c. 7-day Estradiol+CIDR-administration of Estradiol at CIDR insertion on day 0, PG upon removal of CIDR on day 7, and Estradiol on day 8. AI 30-34 hours after 2nd estradiol treatment.

Sheet Introduction (hidden)

Sheet Inputs
B2: Comparison:
E3: vs | G3: Select one of the following:
B4: Breeding system: | C4: Estrus_Detection | F4: Breeding system: | G4: Estrus_Detection
B5: Protocol: | C5: Natural Service | F5: Protocol: | G5: Select Synch +CIDR
A6: =+C5 -> Natural Service | B6: Code: | C6: =VLOOKUP(C5,R99:S109,2,FALSE) -> 1 | F6: Code: | G6: =VLOOKUP(G5,R99:S109,2,FALSE) -> 3
C8: =+C5 -> Natural Service | F8: =+G5 -> Select Synch +CIDR
D9: Your Estimate | F9: Your Estimate | H9: Target Performance
B10: Number of cows in the herd | D10: 100 | E10: head | F10: 100 | G10: head | H10: =IF(Inputs!$G$6=2, PerformancebySystem!D20,IF(Inputs!$G$6=3,PerformancebySystem!E20,IF(Inputs!$G$6=4,PerformancebySystem!F20,IF(Inputs!$G$6=5,PerformancebySystem!G20, IF(Inputs!$G$6=6,PerformancebySystem!H20,IF(Inputs!$G$6=7,PerformancebySystem!I20,IF(Inputs!$G$6=8,PerformancebySystem!J20,IF(Inputs!$G$6=9,PerformancebySystem!K20,IF(Inputs!$G$6=10,PerformancebySystem!L20,IF(Inputs!$G$6=11,PerformancebySystem!M20,0)))))))))) -> 100
B11: Cows/bull | D11: 25 | F11: 25 | H11: =IF(Inputs!$G$6=2, PerformancebySystem!D21,IF(Inputs!$G$6=3,PerformancebySystem!E21,IF(Inputs!$G$6=4,PerformancebySystem!F21,IF(Inputs!$G$6=5,PerformancebySystem!G21, IF(Inputs!$G$6=6,PerformancebySystem!H21,IF(Inputs!$G$6=7,PerformancebySystem!I21,IF(Inputs!$G$6=8,PerformancebySystem!J21,IF(Inputs!$G$6=9,PerformancebySystem!K21,IF(Inputs!$G$6=10,PerformancebySystem!L21,IF(Inputs!$G$6=11,PerformancebySystem!M21,0)))))))))) -> 25
B12: Breeding season days | D12: 83 | F12: 60 | H12: =IF(Inputs!$G$6=2, PerformancebySystem!D22,IF(Inputs!$G$6=3,PerformancebySystem!E22,IF(Inputs!$G$6=4,PerformancebySystem!F22,IF(Inputs!$G$6=5,PerformancebySystem!G22, IF(Inputs!$G$6=6,PerformancebySystem!H22,IF(Inputs!$G$6=7,PerformancebySystem!I22,IF(Inputs!$G$6=8,PerformancebySystem!J22,IF(Inputs!$G$6=9,PerformancebySystem!F22,IF(Inputs!$G$6=10,PerformancebySystem!L22,IF(Inputs!$G$6=11,PerformancebySystem!M22,0)))))))))) -> 60
B13: Bulls needed | D13: =+D10/D11 -> 4 | E13: head | F13: =H13 -> 2 | G13: head | H13: =IF(Inputs!$G$6=2, PerformancebySystem!D23,IF(Inputs!$G$6=3,PerformancebySystem!E23,IF(Inputs!$G$6=4,PerformancebySystem!F23,IF(Inputs!$G$6=5,PerformancebySystem!G23, IF(Inputs!$G$6=6,PerformancebySystem!H23,IF(Inputs!$G$6=7,PerformancebySystem!I23,IF(Inputs!$G$6=8,PerformancebySystem!J23,IF(Inputs!$G$6=9,PerformancebySystem!F23,IF(Inputs!$G$6=10,PerformancebySystem!L23,IF(Inputs!$G$6=11,PerformancebySystem!M23,0)))))))))) -> 2
B14: End of season pregnancy rate* | D14: 90 | E14: % | F14: 95 | G14: % | H14: =IF(Inputs!$G$6=2, PerformancebySystem!D27,IF(Inputs!$G$6=3,PerformancebySystem!E27,IF(Inputs!$G$6=4,PerformancebySystem!F27,IF(Inputs!$G$6=5,PerformancebySystem!G27, IF(Inputs!$G$6=6,PerformancebySystem!H27,IF(Inputs!$G$6=7,PerformancebySystem!I27,IF(Inputs!$G$6=8,PerformancebySystem!J27,IF(Inputs!$G$6=9,PerformancebySystem!F27,IF(Inputs!$G$6=10,PerformancebySystem!L27,IF(Inputs!$G$6=11,PerformancebySystem!M27,0)))))))))) -> 95
B15: Percent calving rate* | D15: 98 | E15: % | F15: 93 | G15: % | H15: =IF(Inputs!$G$6=2, PerformancebySystem!D29,IF(Inputs!$G$6=3,PerformancebySystem!E29,IF(Inputs!$G$6=4,PerformancebySystem!F29,IF(Inputs!$G$6=5,PerformancebySystem!G29, IF(Inputs!$G$6=6,PerformancebySystem!H29,IF(Inputs!$G$6=7,PerformancebySystem!I29,IF(Inputs!$G$6=8,PerformancebySystem!J29,IF(Inputs!$G$6=9,PerformancebySystem!F29,IF(Inputs!$G$6=10,PerformancebySystem!L29,IF(Inputs!$G$6=11,PerformancebySystem!M29,0)))))))))) -> 93
B16: calving span, days* | D16: 93 | E16: days | F16: 64 | G16: days | H16: =IF(Inputs!$G$6=2, PerformancebySystem!D31,IF(Inputs!$G$6=3,PerformancebySystem!E31,IF(Inputs!$G$6=4,PerformancebySystem!F31,IF(Inputs!$G$6=5,PerformancebySystem!G31, IF(Inputs!$G$6=6,PerformancebySystem!H31,IF(Inputs!$G$6=7,PerformancebySystem!I31,IF(Inputs!$G$6=8,PerformancebySystem!J31,IF(Inputs!$G$6=9,PerformancebySystem!F31,IF(Inputs!$G$6=10,PerformancebySystem!L31,IF(Inputs!$G$6=11,PerformancebySystem!M31,0)))))))))) -> 64
B17: calf birth weight, lbs* | D17: 85 | F17: 85 | H17: =IF(Inputs!$G$6=2, PerformancebySystem!D30,IF(Inputs!$G$6=3,PerformancebySystem!E30,IF(Inputs!$G$6=4,PerformancebySystem!F30,IF(Inputs!$G$6=5,PerformancebySystem!G30, IF(Inputs!$G$6=6,PerformancebySystem!H30,IF(Inputs!$G$6=7,PerformancebySystem!I30,IF(Inputs!$G$6=8,PerformancebySystem!J30,IF(Inputs!$G$6=9,PerformancebySystem!F30,IF(Inputs!$G$6=10,PerformancebySystem!L30,IF(Inputs!$G$6=11,PerformancebySystem!M30,0)))))))))) -> 85
B18: calf crop, %* | D18: 84 | F18: 89 | H18: =IF(Inputs!$G$6=2, PerformancebySystem!D32,IF(Inputs!$G$6=3,PerformancebySystem!E32,IF(Inputs!$G$6=4,PerformancebySystem!F32,IF(Inputs!$G$6=5,PerformancebySystem!G32, IF(Inputs!$G$6=6,PerformancebySystem!H32,IF(Inputs!$G$6=7,PerformancebySystem!I32,IF(Inputs!$G$6=8,PerformancebySystem!J32,IF(Inputs!$G$6=9,PerformancebySystem!F32,IF(Inputs!$G$6=10,PerformancebySystem!L32,IF(Inputs!$G$6=11,PerformancebySystem!M32,0)))))))))) -> 89
B19: Calf 205-d adjusted weaning wt | D19: 488 | F19: 496.8 | H19: =IF(Inputs!$G$6=2, PerformancebySystem!D33,IF(Inputs!$G$6=3,PerformancebySystem!E33,IF(Inputs!$G$6=4,PerformancebySystem!F33,IF(Inputs!$G$6=5,PerformancebySystem!G33, IF(Inputs!$G$6=6,PerformancebySystem!H33,IF(Inputs!$G$6=7,PerformancebySystem!I33,IF(Inputs!$G$6=8,PerformancebySystem!J33,IF(Inputs!$G$6=9,PerformancebySystem!F33,IF(Inputs!$G$6=10,PerformancebySystem!L33,IF(Inputs!$G$6=11,PerformancebySystem!M33,0)))))))))) -> 496.824816
B21: Time spent / observation (min.) for AI | D21: 0 | F21: 30 | H21: =BreedingSystems!N27 -> 30
B22: Heat observations /day for AI | D22: 0 | F22: 2 | H22: =BreedingSystems!N28 -> 2
B24: heat detection with AI | D24: - | F24: 0.8 | H24: =IF(Inputs!$G$6=2, PerformancebySystem!D24,IF(Inputs!$G$6=3,PerformancebySystem!E24,IF(Inputs!$G$6=4,PerformancebySystem!F24,IF(Inputs!$G$6=5,PerformancebySystem!G24, IF(Inputs!$G$6=6,PerformancebySystem!H24,IF(Inputs!$G$6=7,PerformancebySystem!I24,IF(Inputs!$G$6=8,PerformancebySystem!J24,IF(Inputs!$G$6=9,PerformancebySystem!K24,IF(Inputs!$G$6=10,PerformancebySystem!L24,IF(Inputs!$G$6=11,PerformancebySystem!M24,0))))))))))*100 -> 80 | I24: %
B25: conception rate with AI | D25: - | F25: 0.55 | H25: =IF(Inputs!$G$6=2, PerformancebySystem!D25,IF(Inputs!$G$6=3,PerformancebySystem!E25,IF(Inputs!$G$6=4,PerformancebySystem!F25,IF(Inputs!$G$6=5,PerformancebySystem!G25, IF(Inputs!$G$6=6,PerformancebySystem!H25,IF(Inputs!$G$6=7,PerformancebySystem!I25,IF(Inputs!$G$6=8,PerformancebySystem!J25,IF(Inputs!$G$6=9,PerformancebySystem!K25,IF(Inputs!$G$6=10,PerformancebySystem!L25,IF(Inputs!$G$6=11,PerformancebySystem!M25,0))))))))))*100 -> 55 | I25: %
B26: # of services | D26: 3 | F26: 1
B27: AI (yes-1/no-0) | D27: 0 | F27: 1
B28: steer 5-600 price | D28: =(200+225)/2 -> 212.5 | E28: /cwt
B29: heifer 5-600 price | D29: =(185+209)/2 -> 197 | E29: /cwt
B30: D1,2 cow | D30: =(85+100)/2 -> 92.5 | E30: /cwt
B31: interest rate | D31: 5 | E31: %
B32: Herd Replacement (Bulls) | D32: 25 | E32: %
B33: Bull Replacement Rate | D33: 5000 | E33: /bull
B34: Original Cost | D34: 3500 | E34: /bull
B35: Bad bull loss | D35: 5 | E35: %
B36: Bull death loss | D36: 2 | E36: %
B37: Cull bull sale weight | D37: 2050 | E37: lbs
B38: Cull bull sale price | D38: =(108+131)/2 -> 119.5 | E38: per cwt
B39: Cull value | D39: =+D37*D38/100 -> 2449.75
B41: Feed Prices:
B42: Barley grain1 | C42: =(230+235)/2 -> 232.5 | D42: /tonne | E42: Blue Salt5 | F42: 9.49 | G42: /55 lb block
B43: barley straw2 | C43: =0.034*2000 -> 68 | D43: /ton | E43: Mineral | F43: 35 | G43: /55 lb block
B44: barley silage3 | C44: =C42/45.93*12 -> 60.74461137 | D44: /ton
B45: alfalfa-brome hay4 | C45: =0.075*2204 -> 165.3 | D45: /tonne
B47: Feed Requirement Per Bull
B48: Barley | E48: 7 | F48: lbs/day
B49: Days/Year on Barley | E49: 120 | F49: days
B50: Hay (Good Quality) | E50: 4 | F50: tons/yr
B51: Pasture | E51: =0.9*180 -> 162 | F51: /bull
B52: Feed for Bulls
B53: Feed Type | C53: $/unit | D53: lbs/Unit | E53: $/lb | F53: lbs feed | G53: Total Cost/bull
B54: alfalfa-brome hay4 | C54: =+C45 -> 165.3 | D54: 2204 | E54: =+C54/D54 -> 0.075 | F54: =+E50*2000 -> 8000 | G54: =+E54*F54 -> 600
B55: Barley grain1 | C55: =+C42 -> 232.5 | D55: 2204 | E55: =+C55/D55 -> 0.1054900181 | F55: =+E48*E49 -> 840 | G55: =+F55*E55 -> 88.61161525
B58: OTHER COST
B59: Labour & Management | C59: 2000 | D59: total | E59: Annual Purchases Minus Culls
B60: Marketing culls | C60: 50 | D60: /bull | E60: Injury Loss | F60: =D35/100*((D33+D39)/2-D39) -> 63.75625
B61: Insurance | C61: 4.75 | D61: /bull | E61: Death Loss | F61: =D36/100*(D33+D39)/2 -> 74.4975
B62: Veterinarian | C62: 50 | D62: /bull | E62: Feed | F62: =+G54+G55+E51 -> 850.6116152
B63: Miscellaneous | C63: 6.5 | D63: /bull
B64: Building Costs | C64: 3.5 | D64: /bull
B65: Bedding | C65: 30 | D65: /bull
B66: depreciation | C66: =(D33-D39)/4 -> 637.5625 | D66: /bull
B68: Costs of AI: | H68: cows/hr
B69: prostaglandin ($/dose) | C69: 5 | E69: materials ($/cow) | F69: 1 | G69: insert CIDR | H69: 50
B70: GnRH ($/dose) | C70: 3.5 | E70: ($/cow) | F70: 12.5 | G70: remove CIDR | H70: 100
B71: CIDR | C71: 18 | E71: wage rate ($/hr) | F71: 20 | G71: AI treating | H71: 50
B72: Cost of pregnancy diagnosis | C72: 3 | G72: hormone dosing | H72: 100
B73: Semen ($/unit): | C73: 25
B74: Estradiol ($/dose) | C74: 2
B75: AI Technician $/cow | C75: 12.5
B76: MGA ($/cow) | C76: 0.11
C80: Beg. Value | D80: End Value | E80: Life (yr) | F80: Annual Maintenance
B81: AI Corrals and Chutes | C81: 20000 | D81: 5000 | E81: 15 | F81: 300
B82: Nitrogen Tank | C82: 500 | D82: 200 | E82: 15
C83: =+C81+C82 -> 20500 | D83: =+D81+D82 -> 5200
Q86: Breeding System
Q87: Estrus_Detection
Q88: Estrus_Detection_with_CleanUp_AI
Q89: Fixed_time_AI
Q92: Code | R92: Estrus Detection | S92: Code | T92: =+Q88 -> Estrus_Detection_with_CleanUp_AI | U92: Code | V92: =+Q89 -> Fixed_time_AI
Q93: 2 | R93: Select Synch | S93: 6 | T93: Select Synch + TAI | U93: 9 | V93: 7 day Co-Synch + CIDR
Q94: 3 | R94: Select Synch +CIDR | S94: 7 | T94: Select Synch + CIDR + TAI | U94: 10 | V94: 5 day Co-Synch + CIDR
Q95: 4 | R95: PG 6-day CIDR | S95: 8 | T95: PG 6 Day CIDR + TAI | U95: 11 | V95: 7 day Estradiol + CIDR
Q96: 5 | R96: MGA+PG
Q97: 1 | R97: Natural Service
R98: System | S98: Code
R99: Natural Service | S99: 1
R100: Select Synch | S100: 2
R101: Select Synch +CIDR | S101: 3
R102: PG 6-day CIDR | S102: 4
R103: MGA+PG | S103: 5
R104: Select Synch + TAI | S104: 6
R105: Select Synch + CIDR + TAI | S105: 7
R106: PG 6 Day CIDR + TAI | S106: 8
R107: 7 day Co-Synch + CIDR | S107: 9
R108: 5 day Co-Synch + CIDR | S108: 10
R109: 7 day Estradiol + CIDR | S109: 11
B115: Partial Budget Analysis
C116: =+C5 -> Natural Service | G116: vs | H116: =+G5 -> Select Synch +CIDR
B117: GAINS | I117: LOSSES
B118: Increased revenue from proposed change | E118: Change | G118: Total | I118: Decreased revenue from proposed change | L118: change | M118: unit | N118: Total
B119: value of additional beef production: | I119: reduced cull bull sales | L119: =+(D13/4)-(F13/4) -> 0.5 | M119: bull | N119: =+L119*D39 -> 1224.875
B120: - change in wean weight | E120: =(F10*F18/100*F19)-(D10*D18/100*D19) -> 3223.2 | F120: lbs | G120: =+E120*((D28+D29)/2)/100 -> 6599.502 | I120: fewer open cull sales | L120: =+F14-D14 -> 5 | M120: % | N120: =L120/100*F10*D30/100*850 -> 3931.25
B121: - change in wean rate | E121: =+F18-D18 -> 5 | F121: %
B123: Sub-total increased revenue ( A ) | G123: =SUM(G119:G122) -> 6599.502 | I123: Sub-total decreased revenue ( C ) | N123: =SUM(N119:N122) -> 5156.125
B125: Decreased costs from proposed change | E125: change | F125: units | G125: Total | I125: Increased costs from proposed change | L125: change | M125: unit | N125: Total
I126: Semen costs | L126: =IF(AND(C6=1,G6=2),BreedingSystems!K54,IF(AND(C6=1,G6=3),BreedingSystems!K55,IF(AND(C6=1,G6=4),BreedingSystems!K56,IF(AND(C6=1,G6=5),BreedingSystems!K57,IF(AND(C6=1,G6=6),BreedingSystems!K58,IF(AND(C6=1,G6=7),BreedingSystems!K59,IF(AND(C6=1,G6=8),BreedingSystems!K60,IF(AND(C6=1,G6=9),BreedingSystems!K61,IF(AND(C6=1,G6=10),BreedingSystems!K62,IF(AND(C6=1,G6=11),BreedingSystems!K63,0)))))))))) -> 92 | M126: inseminations | N126: =L126*C73 -> 2300
B127: Fewer bulls required (reduced cost/bull) | E127: =D13-F13 -> 2 | F127: bulls | G127: =(E127*((C59/D13)+SUM(C60:C66)+F60+F61+F62)) -> 4542.35573 | I127: AI technician | L127: =IF(AND(C6=1,G6=2),BreedingSystems!K54,IF(AND(C6=1,G6=3),BreedingSystems!K55,IF(AND(C6=1,G6=4),BreedingSystems!K56,IF(AND(C6=1,G6=5),BreedingSystems!K57,IF(AND(C6=1,G6=6),BreedingSystems!K58,IF(AND(C6=1,G6=7),BreedingSystems!K59,IF(AND(C6=1,G6=8),BreedingSystems!K60,IF(AND(C6=1,G6=9),BreedingSystems!K61,IF(AND(C6=1,G6=10),BreedingSystems!K62,IF(AND(C6=1,G6=11),BreedingSystems!K63,0)))))))))) -> 92 | M127: inseminations | N127: =L127*C75 -> 1150
B128: fewer replacements needed | E128: =((D13/4-F13/4))+((F14-D14)/100*F10) -> 5.5 | F128: bulls + heifers | G128: =((D13/4-F13/4)*D33)+((F14-D14)/100*F10*D29/100*800) -> 10380
B129: heat detection labour | E129: =IF(AND(C6=1,G6=2),BreedingSystems!AA35,IF(AND(C6=1,G6=3),BreedingSystems!AB35,IF(AND(C6,G6=4),BreedingSystems!AC35,IF(AND(C6=1,G6=5),BreedingSystems!AD35,IF(AND(C6=1,G6=6),BreedingSystems!AE35,IF(AND(C6=1,G6=7),BreedingSystems!AF35,IF(AND(C6=1,G6=8),BreedingSystems!AG35,IF(AND(C6=1,G6=9),BreedingSystems!AH35,IF(AND(C6=1,G6=10),BreedingSystems!AI35,IF(AND(C6=1,G6=11),BreedingSystems!AJ35,0)))))))))) -> 0.06 | F129: hr/cow | G129: =-E129*F10*F71 -> -120 | I129: labour - AI treatment | L129: =IF(AND(C6=1,G6=2),BreedingSystems!AA50,IF(AND(C6=1,G6=3),BreedingSystems!AB50,IF(AND(C6=1,G6=4),BreedingSystems!AC50,IF(AND(C6=1,G6=5),BreedingSystems!AD50,IF(AND(C6=1,G6=6),BreedingSystems!AE50,IF(AND(C6=1,G6=7),BreedingSystems!AF50,IF(AND(C6=1,G6=8),BreedingSystems!AG50,IF(AND(C6=1,G6=9),BreedingSystems!AH50,IF(AND(C6=1,G6=10),BreedingSystems!AI50,IF(AND(C6=1,G6=11),BreedingSystems!AJ50,0)))))))))) -> 0.27 | M129: hr/cow | N129: =L129*F71*F10 -> 540
I130: breeding system treatment cost (drugs) | L130: =IF(AND(C6=1,G6=2),BreedingSystems!Z4,IF(AND(C6=1,G6=3),BreedingSystems!AA4,IF(AND(C6=1,G6=4),BreedingSystems!AB4,IF(AND(C6=1,G6=5),BreedingSystems!AC4,IF(AND(C6=1,G6=6),BreedingSystems!AD4,IF(AND(C6=1,G6=7),BreedingSystems!AE4,IF(AND(C6=1,G6=8),BreedingSystems!AF4,IF(AND(C6=1,G6=9),BreedingSystems!AG4,IF(AND(C6=1,G6=10),BreedingSystems!AH4,IF(AND(C6=1,G6=11),BreedingSystems!AI4,0)))))))))) -> 2650 | M130: /herd | N130: =+L130 -> 2650
I131: AI supplies (syringes, etc.) | L131: =(F10*F69*F27)-(D10*D27*F69) -> 100 | M131: /herd | N131: =+L131 -> 100
I132: AI Equipment maintenance | L132: =+F81*F27 -> 300 | M132: /herd | N132: 300
I133: Depreciation & interest on AI Equipment | L133: =(((C83-D83)/E81)+(D31/100*((C83+D83)/2)))*F27 -> 1662.5 | M133: /herd | N133: 1662.5
B134: Sub-total Decreased Costs ( B ) | G134: =SUM(G126:G133) -> 14802.35573 | I134: Sub-total Increased Costs ( D ) | N134: =SUM(N126:N133) -> 8702.5
B135: Total Gains ( A + B = E ) | G135: =G123+G134 -> 21401.85773 | I135: Total Losses ( C + D = F ) | N135: =N123+N134 -> 13858.625
I137: Expected Net Gain | N137: =+G135-N135 -> 7543.23273
M138: per cow | N138: =+N137/F10 -> 75.4323273
B140: Weekly Livestock Market Review - July 20, 2018, Alberta Agriculture and Forestry
B141: 1. Weekly Crop Market Review - July 20, 2018, feed grain bids - feedmills, feedlots, cash grain brokers
B142: 2. Central Silage (60% moisture) and straw, April to June AFSC Commodity Prices, 7/18/2018
B143: 3. Agriculture and Forestry website: 'What is My Cereal Silage Crop Worth?' that estimates a multiplier of 12 times the barley price per bushel for the value of a ton of silage "at the pit" i.e. harvested and delivered by the grower
B144: 4. Central Alfalfa Hay 1st cut, April to June AFSC Commodity Prices, 17/18/2018
B145: 5. July estimated price for Blue Salt and mineral blocks (55 lb units) as reported by several commercial feed suppliers.

Sheet BreedingSystems (hidden)
A1: Breeding system | H1: System 1 | K1: Insemination method: | N1: Code | O1: Estrus AI: | P1: Code | Q1: Estrus AI with Cleanup AI | R1: Code | S1: Fixed-time AI
H2: cows | I2: =Inputs!D10 -> 100 | K2: estrus AI | N2: 2 | O2: Select Synch | P2: 5 | Q2: Select Synch +TAI | R2: 8 | S2: 7-day CO-Synch + CIDR | X2: Difference | Z2: Treatment costs
A3: Costs of AI: | D3: Labour / working | K3: estrus AI with cleanup AI | N3: 3 | O3: Select Synch +CIDR | P3: 6 | Q3: Select Synch+CIDR+TAI | R3: 9 | S3: 5-day CO-Synch + CIDR | Y3: 1 | Z3: 2 | AA3: 3 | AB3: 4 | AC3: 5 | AD3: 6 | AE3: 7 | AF3: 8 | AG3: 9 | AH3: 10 | AI3: 11
A4: Cost of prostaglandin/dose | B4: 5.25 | D4: hours | E4: =+#REF!/23 ->  | H4: System 2 | K4: fixed-time AI | N4: 4 | O4: PGF2α 6-day CIDR | P4: 7 | Q4: PGF2α 6 Day CIDR +TAI | R4: 10 | S4: 7-day Co-synch + CIDR with Estradiol | X4: 1 | Y4: 0 | Z4: =P11-P59 -> 850 | AA4: =P23-P59 -> 2650 | AB4: =+P36-P59 -> 2752.5 | AC4: =P48-P59 -> 654 | AD4: =R11-P59 -> 850.7 | AE4: =R23-P59 -> 2720 | AF4: =R36-P59 -> 2822.5 | AG4: =T11-P59 -> 3000 | AH4: =T23-P59 -> 3500 | AI4: =T36-P59 -> 2700
A5: Cost of GnRH | B5: 3 | D5: workers | E5: =#REF!/#REF! ->  | H5: cows | I5: =Inputs!F10 -> 100 | N5: 1 | O5: MGA+PGF2α | X5: 2 | Z5: 0 | AA5: =P23-P11 -> 1800 | AB5: =P36-P11 -> 1902.5 | AC5: =P48-P11 -> -196 | AD5: =R11-P11 -> 0.7 | AE5: =R23-P11 -> 1870 | AF5: =R36-P11 -> 1972.5 | AG5: =T11-P11 -> 2150 | AH5: =T23-P11 -> 2650 | AI5: =T36-P11 -> 1850
A6: CIDR | B6: 15 | D6: wage rate | E6: 20 | K6: Input Costs | O6: Natural Service | X6: 3 | AA6: 0 | AB6: =P36-P23 -> 102.5 | AC6: =P48-P23 -> -1996 | AD6: =R11-P23 -> -1799.3 | AE6: =R23-P23 -> 70 | AF6: =R36-P23 -> 172.5 | AG6: =T11-P23 -> 350 | AH6: =T23-P23 -> 850 | AI6: =T36-P23 -> 50
A7: Cost of pregnancy diagnosis | B7: 3 | K7: Labor costs ($/hr): | M7: =Inputs!F71 -> 20 | O7: Select Synch | Q7: =+Q2 -> Select Synch +TAI | S7: =+S2 -> 7-day CO-Synch + CIDR | U7: 55 | X7: 4 | AB7: 0 | AC7: =P48-P36 -> -2098.5 | AD7: =R11-P36 -> -1901.8 | AE7: =R23-P36 -> -32.5 | AF7: =R36-P36 -> 70 | AG7: =T11-P36 -> 247.5 | AH7: =T23-P36 -> 747.5 | AI7: =T36-P36 -> -52.5
C8: Drugs, Supplies ($) | D8: Required Workings | E8: Materials ($) | F8: Technician ($) | G8: Semen ($) | K8: PG ($/dose): | M8: =Inputs!C69 -> 5 | O8: handling | P8: 3 | Q8: handling | R8: 3 | S8: handling | T8: 3 | X8: 5 | AC8: 0 | AD8: =R11-P48 -> 196.7 | AE8: =R23-P48 -> 2066 | AF8: =R36-P48 -> 2168.5 | AG8: =T11-P48 -> 2346 | AH8: =T23-P48 -> 2846 | AI8: =T36-P48 -> 2046
A9: synchronization (per herd) | C9: 1250 | E9: =0.92*#REF! ->  | K9: GnRH ($/dose): | M9: =Inputs!C70 -> 3.5 | O9: labour hrs /cow (not HD) | P9: =P15+P16 -> 0.28 | Q9: labour hrs | R9: =R15+R16 -> 0.289 | S9: labour hrs | T9: =T15+T16 -> 0.29 | X9: 6 | AD9: 0 | AE9: =R23-R11 -> 1869.3 | AF9: =R36-R11 -> 1971.8 | AG9: =T11-R11 -> 2149.3 | AH9: =R11 -> 850.7 | AI9: =R11 -> 850.7
A10: heat detection (per cow) | D10: 1 | K10: CIDR ($/insert): | M10: =Inputs!C71 -> 18 | O10: treatment cost/cow | P10: =(M9+(M8)) -> 8.5 | Q10: cost/cow | R10: =(M9+M8)+(((1-$J$50)/100)*(M9)) -> 8.507 | S10: cost/cow | T10: =(M9+M10+M8+M9) -> 30 | X10: 7 | AE10: 0 | AF10: =R36-R23 -> 102.5 | AG10: =T11-R23 -> 280 | AH10: =T23-R23 -> 780 | AI10: =T36-R23 -> -20
A11: 1st service (per cow) | D11: 1 | F11: 20 | G11: 26.6 | K11: Semen ($/unit): | M11: =Inputs!C73 -> 25 | O11: total | P11: =(P10*I5) -> 850 | Q11: total | R11: =(R10*I5) -> 850.7 | S11: total | T11: =+T10*I5 -> 3000 | X11: 8 | AF11: 0 | AG11: =T11-R36 -> 177.5 | AH11: =-R36 -> -2822.5 | AI11: =T36-R36 -> -122.5
A12: 2nd service (per cow) | D12: 1 | F12: 20 | G12: 26.6 | K12: Estradiol | M12: =+Inputs!C74 -> 2 | X12: 9 | AG12: 0 | AH12: =T23-T11 -> 500 | AI12: =T36-T11 -> -300
A13: 3rd service (per cow) | K13: MGA | M13: =+Inputs!C76 -> 0.11 | O13: Cleanup bulls | P13: =((1-N39)*I5)/PerformancebySystem!D21 -> 2.46 | Q13: Cleanup bulls | R13: =((1-N43)*I5)/PerformancebySystem!H21 -> 2.12 | S13: Cleanup bulls | T13: =(I5-(I5*PerformancebySystem!K26/100))/PerformancebySystem!K21 -> 1.8 | X13: 10 | AH13: 0 | AI13: =T36-T23 -> -800
L14: cows/hr | O14: heat detection | P14: =+L22 -> 0.07 | Q14: heat detection | R14: =(4*M27/60*M28)/$I$2 -> 0.04 | S14: heat detection | T14: 0 | X14: 11 | AI14: 0
K15: insert CIDR | L15: =Inputs!H69 -> 50 | O15: handling time(2 doses) | P15: =(2*I5/L17)/I5 -> 0.04 | Q15: handling time(3 doses) | R15: =((2+(1-K43))*(I5/L17))/I5 -> 0.049 | S15: handling time(3 doses) | T15: =((2*I5/L17)+(I5/L18))/I5 -> 0.05
K16: remove CIDR | L16: =Inputs!H70 -> 100 | O16: insemination | P16: =1/L19 -> 0.24 | Q16: insemination | R16: =1/L19 -> 0.24 | S16: insemination | T16: =+I5/L19/I5 -> 0.24
K17: AI treating | L17: =Inputs!H71 -> 50 | P17: =($I$5*$J$39)+((1-$J$39)*$I$5)*$L$39 -> 88
J18: 1 time | K18: hormone dosing | L18: =Inputs!H72 -> 100 | Y18: LookUp
K19: Insemination: | L19: =25/6 -> 4.166666667 | M19: /3 hr twice a day | O19: =+O3 -> Select Synch +CIDR | Q19: =+Q3 -> Select Synch+CIDR+TAI | S19: =+S3 -> 5-day CO-Synch + CIDR | U19: 60 | Y19: Code | Z19: Protocol
J20: Extra Time with HD AI | O20: handling | P20: 3 | Q20: handling | R20: 3 | S20: handling | T20: 4 | Y20: 1 | Z20: Natural Service
J21: HD based | O21: labour hrs | P21: =P27+P28 -> 0.27 | Q21: labour hrs | R21: =R27+R28 -> 0.279 | S21: labour hrs | T21: =T27+T28 -> 0.31 | Y21: 2 | Z21: Select Synch
K22: AI - 7day | L22: =(($M$27/60)*$M$28*7)/Inputs!$F$10 -> 0.07 | M22: =(1/L$19*$I$5)/$I$5 -> 0.24 | O22: treatment cost/cow | P22: =+(M9+M10+M8) -> 26.5 | Q22: cost/cow | R22: =+((M9+M10+M8))+((1-J50)*(M9)) -> 27.2 | S22: cost/cow | T22: =(M9+M10+M8+M8+M9) -> 35 | Y22: 3 | Z22: Select Synch +CIDR
K23: AI - 6day | L23: =(($M$27/60)*$M$28*6)/Inputs!$F$10 -> 0.06 | M23: =($I$5/L19*6)/$I$5 -> 1.44 | O23: total | P23: =(P22*I5) -> 2650 | Q23: total | R23: =R22*I5 -> 2720 | S23: total | T23: =+T22*I5 -> 3500 | Y23: 4 | Z23: PG 6-day CIDR
K24: AI - 4day | L24: =(($M$27/60)*$M$28*4)/Inputs!$F$10 -> 0.04 | M24: =($I$5/L19*4)/$I$5 -> 0.96 | Y24: 5 | Z24: MGA+PG
K25: AI - 3day | L25: =(($M$27/60)*$M$28*3)/Inputs!$F$10 -> 0.03 | M25: =($I$5/L19*3)/$I$5 -> 0.72 | O25: Cleanup bulls | P25: =((1-N40)*I5)/PerformancebySystem!E21 -> 2.24 | Q25: Cleanup bulls | R25: =((1-N43)*I5)/PerformancebySystem!I21 -> 2.12 | S25: Cleanup bulls | T25: =((I5-(I5*PerformancebySystem!L26/100))/PerformancebySystem!L21) -> 1.6 | Y25: 6 | Z25: Select Synch +TAI
K26: natural service | M26: System | N26: target | O26: heat detection | P26: =+L23 -> 0.06 | Q26: heat detection | R26: =(4*M27/60*M28)/$I$2 -> 0.04 | S26: heat detection | T26: 0 | Y26: 7 | Z26: Select Synch+CIDR+TAI
I27: Time spent / observation (min.) | K27: =Inputs!D21 -> 0 | M27: =Inputs!F21 -> 30 | N27: 30 | O27: handling time(2 doses) | P27: =((I5/L17)+(I5/L18))/I5 -> 0.03 | Q27: handling time(3 doses) | R27: =((I5/L17)+(I5/L18)+((1-K44)*(I5/L17)))/I5 -> 0.039 | S27: handling time(4 doses) | T27: =(I5/L17+I5/L18+I5/L17+I5/L17)/I5 -> 0.07 | Y27: 8 | Z27: PG 6 Day CIDR +TAI
I28: Heat observations /day | K28: =Inputs!D22 -> 0 | M28: =Inputs!F22 -> 2 | N28: 2 | O28: insemination | P28: =1/L19 -> 0.24 | Q28: insemination | R28: =1/L19 -> 0.24 | S28: insemination | T28: =+I5/L19/I5 -> 0.24 | Y28: 9 | Z28: Co-synch_CIDRwithGnRH-7day
I29: cycles | K29: =Inputs!D26 -> 3 | P29: =($I$5*$J$40)+((1-$J$40)*$I$5)*$L$40 -> 92 | Y29: 10 | Z29: CO-Synch-CIDR-5day
J30: days/cycle | K30: 21 | Y30: 11 | Z30: Co-synch-CIDRwithEstradiol-7day
O32: =+O4 -> PGF2α 6-day CIDR | Q32: =+Q4 -> PGF2α 6 Day CIDR +TAI | S32: =S4 -> 7-day Co-synch + CIDR with Estradiol
H33: non-synchronized | O33: handling | P33: 3 | Q33: handling | R33: =((1-M45)*I5)/20 -> 2.75 | S33: handling | T33: 4 | Y33: Difference | AA33: heat detection
I34: 1st cycle | J34: 2nd cycle | K34: 3rd cycle | O34: labour hrs | P34: =P40+P41 -> 0.29 | Q34: labour hrs | R34: =R40+R41 -> 0.299 | S34: labour hrs | T34: =T40+T41 -> 0.27 | Z34: 1 | AA34: 2 | AB34: 3 | AC34: 4 | AD34: 5 | AE34: 6 | AF34: 7 | AG34: 8 | AH34: 9 | AI34: 10 | AJ34: 11
O35: cost/cow | P35: =(M8)+(0.85*(M9+M10+M8)) -> 27.525 | Q35: cost/cow | R35: =(M8)+(0.85*(M9+M10+M8))+((1-J50)*(M9)) -> 28.225 | S35: cost/cow | T35: =(M12*2)+M8+M10 -> 27 | Y35: 1 | AA35: =P14-P62 -> 0.07 | AB35: =P26-P62 -> 0.06 | AC35: =P39-P62 -> 0.06 | AD35: =P51-P62 -> 0.06 | AE35: =R14-P62 -> 0.04 | AF35: =R26-P62 -> 0.04 | AG35: =R39-P62 -> 0.06 | AH35: =T14-P62 -> 0 | AI35: =T26-P62 -> 0 | AJ35: =T39-P62 -> 0
O36: total | P36: =+P35*I5 -> 2752.5 | Q36: total | R36: =(R35*I5) -> 2822.5 | S36: total | T36: =+T35*I5 -> 2700 | Y36: 2
J37: Early Estrus | K37: CR | L37: Remaining Estrus | M37: CR | N37: Preg | Y37: 3
H38: 1 | I38: =Inputs!R99 -> Natural Service | O38: Cleanup bulls | P38: =+((1-N41)*I5)/PerformancebySystem!F21 -> 2.24 | Q38: Cleanup bulls | R38: =((1-N45)*I5)/PerformancebySystem!J21 -> 1.92 | S38: Cleanup bulls | T38: =(I5-(I5*PerformancebySystem!M26/100))/PerformancebySystem!M21 -> 1.72 | Y38: 4
H39: 2 | I39: =Inputs!R100 -> Select Synch | J39: 0.7 | K39: 0.55 | L39: 0.6 | M39: =L39*K39 -> 0.33 | N39: =K39*J39 -> 0.385 | O39: heat detection | P39: =+L23 -> 0.06 | Q39: heat detection | R39: =(6*M27/60*M28)/$I$2 -> 0.06 | S39: heat detection | T39: 0 | Y39: 5
H40: 3 | I40: =Inputs!R101 -> Select Synch +CIDR | J40: 0.8 | K40: 0.55 | L40: 0.6 | M40: =L40*K40 -> 0.33 | N40: =J40*K40 -> 0.44 | O40: handling time(3 doses) | P40: =((I5/L17)+(I5/L17)+(I5/L18))/I5 -> 0.05 | Q40: handling time(3 doses) | R40: =(((2+(1-K45))*I5/L17)+(I5/L18))/I5 -> 0.059 | S40: handling time(2 doses) | T40: =((I5/L17)+(I5/L16))/I5 -> 0.03 | Y40: 6
H41: 4 | I41: =Inputs!R102 -> PG 6-day CIDR | J41: 0.8 | K41: 0.55 | L41: 0.6 | M41: =L41*K41 -> 0.33 | N41: =J41*K41 -> 0.44 | O41: insemination | P41: =1/L19 -> 0.24 | Q41: insemination | R41: =1/L19 -> 0.24 | S41: insemination | T41: =I5/L19/I5 -> 0.24 | Y41: 7
H42: 5 | I42: =Inputs!R103 -> MGA+PG | J42: 0.8 | K42: 0.6 | L42: 0.6 | M42: =L42*K42 -> 0.36 | N42: 0.48 | P42: =($I$5*$J$41)+((1-$J$41)*$I$5)*$L$41 -> 92 | Y42: 8
H43: 6 | I43: =Inputs!R104 -> Select Synch + TAI | J43: 0.6 | K43: 0.55 | L43: =1-J43 -> 0.4 | M43: 0.35 | N43: =(J43*K43)+(L43*M43) -> 0.47 | Y43: 9
H44: 7 | I44: =Inputs!R105 -> Select Synch + CIDR + TAI | J44: 0.65 | K44: 0.55 | L44: =1-J44 -> 0.35 | M44: 0.4 | N44: =(J44*K44)+(L44*M44) -> 0.4975 | O44: =+O5 -> MGA+PGF2α | Y44: 10
H45: 8 | I45: =Inputs!R106 -> PG 6 Day CIDR + TAI | J45: 0.7 | K45: 0.55 | L45: =1-J45 -> 0.3 | M45: 0.45 | N45: =(J45*K45)+(L45*M45) -> 0.52 | O45: handling | P45: 4 | Y45: 11
H46: 9 | I46: =Inputs!R107 -> 7 day Co-Synch + CIDR | N46: 0.55 | O46: labour hrs | P46: =P52+P53 -> 0.26
H47: 10 | I47: =Inputs!R108 -> 5 day Co-Synch + CIDR | N47: 0.6 | O47: cost/cow | P47: =(M13*14)+M8 -> 6.54
H48: 11 | I48: =Inputs!R109 -> 7 day Estradiol + CIDR | N48: 0.57 | O48: total | P48: =+P47*I5 -> 654 | Y48: Difference | AA48: AI treatment labour
Z49: 1 | AA49: 2 | AB49: 3 | AC49: 4 | AD49: 5 | AE49: 6 | AF49: 7 | AG49: 8 | AH49: 9 | AI49: 10 | AJ49: 11
I50: Prod. HD | J50: =Inputs!F24 -> 0.8 | O50: Cleanup bulls | P50: =+((1-N42)*I5)/PerformancebySystem!G21 -> 2.08 | Y50: 1 | AA50: =P9-P57 -> 0.28 | AB50: =P21-P57 -> 0.27 | AC50: =P34-P57 -> 0.29 | AD50: =P46-P57 -> 0.26 | AE50: =R9-P57 -> 0.289 | AF50: =R21-P57 -> 0.279 | AG50: =R34-P57 -> 0.299 | AH50: =T9-P57 -> 0.29 | AI50: =T21-P57 -> 0.31 | AJ50: =T34-P57 -> 0.27
I51: Prod. CR | J51: =Inputs!F25 -> 0.55 | O51: heat detection | P51: =+L23 -> 0.06 | Y51: 2
I52: semen use | O52: handling time(1 dose) | P52: =(I5/(L17))/I5 -> 0.02 | Y52: 3
H53: 1 | I53: Natural Service | O53: insemination | P53: =1/L19 -> 0.24 | Y53: 4
H54: 2 | I54: Select Synch | K54: =($I$5*J39)+(($I$5-($I5*J39))*L39) -> 88 | L54: =($I$5*J39)+(($I$5-($I5*J39))*L39) -> 88 | P54: =($I$5*$J$42)+((1-$J$42)*$I$5)*$L$42 -> 92 | Y54: 5
H55: 3 | I55: Select Synch +CIDR | K55: =($I$5*J40)+(($I$5-($I$5*J40))*L40) -> 92 | L55: =($I$5*J40)+(($I$5-($I5*J40))*L40) -> 92 | O55: =O6 -> Natural Service | Y55: 6
H56: 4 | I56: PG 6-day CIDR | K56: =($I$5*J41)+(($I$5-($I$5*J41))*L41) -> 92 | L56: =($I$5*J41)+(($I$5-($I5*J41))*L41) -> 92 | O56: handling | P56: 0 | Y56: 7
H57: 5 | I57: MGA+PG | K57: =($I$5*J42)+(($I$5-($I$5*J42))*L42) -> 92 | L57: =($I$5*J42)+(($I$5-($I5*J42))*L42) -> 92 | O57: labour hrs | P57: =P63+P64 -> 0 | Y57: 8
H58: 6 | I58: Select Synch +TAI | K58: =$I$5 -> 100 | L58: =$I$5 -> 100 | O58: cost/cow | P58: 0 | Y58: 9
H59: 7 | I59: Select Synch+CIDR+TAI | K59: 100 | L59: 100 | O59: total | P59: =P58*I2 -> 0 | Y59: 10
H60: 8 | I60: PG 6 Day CIDR +TAI | K60: 100 | L60: 100 | Y60: 11
H61: 9 | I61: Co-synch_CIDR with GnRH-7day | K61: 100 | L61: 100 | O61: Cleanup bulls
H62: 10 | I62: CO-Synch-CIDR-5day | K62: 100 | L62: 100 | O62: heat detection | P62: =((K27/60)*K28*K29*K30)/Inputs!D10 -> 0
H63: 11 | I63: Co-synch-CIDR with Estradiol-7day | K63: 100 | L63: 100 | O63: handling time(3 doses) | P63: 0
O64: insemination | P64: 0

Sheet PerformancebySystem
B3: Code | C3: Protocol
B4: 1 | C4: =Inputs!R99 -> Natural Service
B5: 2 | C5: Select Synch
B6: 3 | C6: Select Synch +CIDR
B7: 4 | C7: PG 6-day CIDR
B8: 5 | C8: MGA+PG
B9: 6 | C9: Select Synch +TAI
B10: 7 | C10: Select Synch+CIDR+TAI
B11: 8 | C11: PG 6 Day CIDR +TAI
B12: 9 | C12: Co-synch_CIDR with GnRH-7day
B13: 10 | C13: CO-Synch-CIDR-5day
B14: 11 | C14: Co-synch-CIDR with Estradiol-7day
D18: Estrus Detection | I18: Estrus AI with Cleanup AI | L18: Fixed-time AI
C19: =+C4 -> Natural Service | D19: =Inputs!R100 -> Select Synch | E19: =Inputs!R101 -> Select Synch +CIDR | F19: =Inputs!R102 -> PG 6-day CIDR | G19: =Inputs!R103 -> MGA+PG | H19: =Inputs!R104 -> Select Synch + TAI | I19: =Inputs!R105 -> Select Synch + CIDR + TAI | J19: =Inputs!R106 -> PG 6 Day CIDR + TAI | K19: =Inputs!R107 -> 7 day Co-Synch + CIDR | L19: =Inputs!R108 -> 5 day Co-Synch + CIDR | M19: =Inputs!R109 -> 7 day Estradiol + CIDR
B20: cows | C20: =Inputs!D10 -> 100 | D20: =C20 -> 100 | E20: =D20 -> 100 | F20: 100 | G20: 100 | H20: 100 | I20: 100 | J20: 100 | K20: 100 | L20: 100 | M20: 100
B21: cows/bull | C21: =Inputs!D11 -> 25 | D21: 25 | E21: 25 | F21: 25 | G21: 25 | H21: 25 | I21: 25 | J21: 25 | K21: 25 | L21: 25 | M21: 25
B22: Breeding season days | C22: 83 | D22: 60 | E22: 60 | F22: 60 | G22: 60 | H22: 60 | I22: 60 | J22: 60 | K22: 60 | L22: 60 | M22: 60
B23: Bulls needed | C23: =C20/C21 -> 4 | D23: =ROUND(BreedingSystems!P13,0) -> 2 | E23: =ROUND(BreedingSystems!P25,0) -> 2 | F23: =ROUND(BreedingSystems!P38,0) -> 2 | G23: =ROUND(BreedingSystems!P50,0) -> 2 | H23: =ROUND(BreedingSystems!R13,0) -> 2 | I23: =ROUND(BreedingSystems!R25,0) -> 2 | J23: =ROUND(BreedingSystems!R38,0) -> 2 | K23: =ROUND((K20-(K20*K26/100))/K21,0) -> 2 | L23: 2 | M23: 2
B24: heat detection | C24: 0 | D24: =BreedingSystems!J39 -> 0.7 | E24: =BreedingSystems!J40 -> 0.8 | F24: =BreedingSystems!J41 -> 0.8 | G24: =BreedingSystems!J42 -> 0.8 | H24: =BreedingSystems!J43 -> 0.6 | I24: =BreedingSystems!J44 -> 0.65 | J24: =BreedingSystems!J45 -> 0.7 | K24: 0 | L24: 0 | M24: 0
B25: conception rate | D25: =BreedingSystems!K39 -> 0.55 | E25: =BreedingSystems!K40 -> 0.55 | F25: =BreedingSystems!K41 -> 0.55 | G25: =BreedingSystems!K42 -> 0.6 | H25: =BreedingSystems!K43 -> 0.55 | I25: =BreedingSystems!K44 -> 0.55 | J25: =BreedingSystems!K45 -> 0.55
B26: pregnancy rate to AI | C26: 0 | D26: =+BreedingSystems!N39*100 -> 38.5 | E26: =+BreedingSystems!N40*100 -> 44 | F26: =+BreedingSystems!N41*100 -> 44 | G26: =+BreedingSystems!N42*100 -> 48 | H26: =+BreedingSystems!N43*100 -> 47 | I26: =+BreedingSystems!N44*100 -> 49.75 | J26: =+BreedingSystems!N45*100 -> 52 | K26: =BreedingSystems!N46*100 -> 55 | L26: =BreedingSystems!N47*100 -> 60 | M26: =BreedingSystems!N48*100 -> 57
B27: End of season pregnancy rate* | C27: 90 | D27: 90 | E27: 95 | F27: 95 | G27: 95 | H27: 90 | I27: 95 | J27: 95 | K27: 95 | L27: 95 | M27: 95
B28: heat detection efficiency (where AI is used)
B29: Percent calving rate* | C29: 88 | D29: 88 | E29: 93 | F29: =E29 -> 93 | G29: =E29 -> 93 | H29: 88 | I29: 93 | J29: =I29 -> 93 | K29: =I29 -> 93 | L29: =I29 -> 93 | M29: =I29 -> 93
B30: Calf birth wt,lbs* | C30: 85 | D30: 85 | E30: 85 | F30: 85 | G30: 85 | H30: 85 | I30: 85 | J30: 85 | K30: 85 | L30: 85 | M30: 85
B31: calving span, days* | C31: 93 | D31: 64 | E31: 64 | F31: 64 | G31: 64 | H31: 64 | I31: 64 | J31: 64 | K31: 64 | L31: 64 | M31: 64
B32: calf crop, %* | C32: =Inputs!D18 -> 84 | D32: 84 | E32: =D32+5 -> 89 | F32: =E32 -> 89 | G32: =F32 -> 89 | H32: =D32 -> 84 | I32: =H32+5 -> 89 | J32: =I32 -> 89 | K32: =I32 -> 89 | L32: =I32 -> 89 | M32: =I32 -> 89
B33: Calf 205-d adjusted weaning wt | C33: =Inputs!D19 -> 488 | D33: =D36 -> 495.721714 | E33: =E36 -> 496.824816 | F33: 496.824816 | G33: 497.627072 | H33: 497.426508 | I33: 497.978059 | J33: 498.429328 | K33: 499.03102 | L33: 500.03384 | M33: 499.432148
D34: 205-d WW = (((WW – actual BW) / wean age, days) x 205) + actual BW
D35: =(D33-$C$33)/2.204 -> 3.5035 | E35: 4.004 | F35: 4.004 | G35: 4.368 | H35: 4.277 | I35: 4.52725 | J35: 4.732 | K35: 5.005 | L35: 5.46 | M35: 5.187
D36: =$C$33+((D26)/100*9.1*2.204) -> 495.721714 | E36: =$C$33+((E26)/100*9.1*2.204) -> 496.824816 | F36: 496.824816 | G36: 497.627072 | H36: 497.426508 | I36: 497.978059 | J36: 498.429328 | K36: 499.03102 | L36: 500.03384 | M36: 499.432148
B37: =159/187 -> 0.8502673797
B38: =181/214 -> 0.8457943925 | D38: =D27/100*D29/100 -> 0.792 | E38: 0.8835 | F38: 0.8835 | G38: 0.8835 | H38: 0.792 | I38: 0.8835 | J38: 0.8835 | K38: 0.8835 | L38: 0.8835 | M38: 0.8835
B39: =153/187 -> 0.8181818182
B40: =153/187 -> 0.8181818182 | E40: =E32-D32 -> 5
B41: =207/247 -> 0.8380566802

Sheet Sheet1 (hidden)
B1: Natural Service Costs | W1: AI Costs
B2: GENERAL: Natural Service Only | W2: GENERAL: AI and cleanup natural service
B5: Number of cows in the herd | D5: 100 | E5: head | F5: =IF(NatPregRate=0,"",IF(NatWeanRate>NatPregRate,"WARNING: Calving Rate is greater than End of Season Pregnancy Rate","")) ->  | W5: Number of cows in the herd | Y5: =HerdSize -> 100 | Z5: head
B6: Bulls needed | D6: 4 | E6: head | W6: Clean-up Bulls needed | Y6: 1 | Z6: head | AA6: =IF(AISystemPregRate=0,"",IF(AIWeanRate>AISystemPregRate,"WARNING: Weaning Rate is greater than Pregnancy Rate","")) -> 
B7: End of season pregnancy rate | D7: 93 | E7: % | W7: End of season pregnancy rate | Y7: 95 | Z7: %
B8: Percent calf crop | D8: 93 | E8: % | W8: Percent calf crop | Y8: 94 | Z8: %
B9: Interest rate | D9: 5 | E9: % | W9: Wage rate for AI activities | Y9: 12 | Z9: $ / Hr
B10: Calf value | D10: 900 | E10: $ / head
W11: SYNCHRONIZATION | AD11: head | AE11: all cows | AF11: non-bred cow
B12: BULL INFORMATION | AA12: per Cow per Year | AD12: bull | AE12: all bulls
W14: Labor | X14: 10 | Y14: hours per | Z14: all cows | AA14: =IF(HerdSize=0,0,X14*WageRate/IF(Z14="all cows",HerdSize,1)) -> 1.2
B15: Bull cost (including delivery) | D15: 3500 | W15: Drugs, CIDR, supplies | X15: 1250 | Y15: dollars per | Z15: all cows | AA15: =IF(HerdSize=0,0,X15/IF(Z15="all cows",HerdSize,1)) -> 12.5
B16: Average years bulls used | D16: 4 | E16: years | Y16: dollars per | Z16: all cows | AA16: =IF(HerdSize=0,0,X16/IF(Z16="all cows",HerdSize,1)) -> 0
B17: Bad bull loss | D17: 5 | E17: % | Y17: dollars per | Z17: all cows | AA17: =IF(HerdSize=0,0,X17/IF(Z17="all cows",HerdSize,1)) -> 0
B18: Bull death loss | D18: 2 | E18: %
B19: Cull bull sale weight | D19: 2050 | E19: pounds | G19: Cull Value | H19: =D19*D20/100 -> 2316.5 | W19: HEAT DETECTION (for all breeding periods)
B20: Cull bull sale price | D20: 113 | E20: $/cwt | G20: Average Value | H20: =(D15+H19)/2 -> 2908.25 | AA20: per Cow per Year
B22: GRAZING COST (per bull) | C22: Time | D22: Period | E22: Price | F22: per Period | G22: per Bull per year | L22: Days | M22: $ / Day | N22: Total $ | W22: Labour | X22: 0.5 | Y22: hours per | Z22: head | AA22: =IF(HerdSize=0,0,X22*WageRate/IF(Z22="all cows",HerdSize,1)) -> 6
Y23: dollars per | Z23: head | AA23: =IF(HerdSize=0,0,X23/IF(Z23="all cows",HerdSize,1)) -> 0
Y24: dollars per | Z24: head | AA24: =IF(HerdSize=0,0,X24/IF(Z24="all cows",HerdSize,1)) -> 0
B25: Growing season | C25: 180 | D25: days | E25: 30 | F25: per month | G25: =L25*M25 -> 177.5342466 | L25: =ROUND(C25*IF(D25="days",1,IF(D25="months",365/12,IF(D25="year",365,0))),0) -> 180 | M25: =IFERROR(E25/IF(F25="per day",1,IF(F25="per month",365/12,IF(F25="per year",365,0))),0) -> 0.9863013699 | N25: =L25*M25*NatBulls -> 710.1369863 | R25: days | S25: months | T25: year | Y25: dollars per | Z25: head | AA25: =IF(HerdSize=0,0,X25/IF(Z25="all cows",HerdSize,1)) -> 0
B26: Dormant season | F26: per year | G26: =L26*M26 -> 0 | L26: =ROUND(C26*IF(D26="days",1,IF(D26="months",365/12,IF(D26="year",365,0))),0) -> 0 | M26: =IFERROR(E26/IF(F26="per day",1,IF(F26="per month",365/12,IF(F26="per year",365,0))),0) -> 0 | N26: =L26*M26*NatBulls -> 0 | R26: per day | S26: per month | T26: per year | Y26: dollars per | Z26: head | AA26: =IF(HerdSize=0,0,X26/IF(Z26="all cows",HerdSize,1)) -> 0
D27: months | F27: per month | G27: =L27*M27 -> 0 | L27: =ROUND(C27*IF(D27="days",1,IF(D27="months",365/12,IF(D27="year",365,0))),0) -> 0 | M27: =IFERROR(E27/IF(F27="per day",1,IF(F27="per month",365/12,IF(F27="per year",365,0))),0) -> 0 | N27: =L27*M27*NatBulls -> 0
F28: per day | G28: =L28*M28 -> 0 | L28: =ROUND(C28*IF(D28="days",1,IF(D28="months",365/12,IF(D28="year",365,0))),0) -> 0 | M28: =IFERROR(E28/IF(F28="per day",1,IF(F28="per month",365/12,IF(F28="per year",365,0))),0) -> 0 | N28: =L28*M28*NatBulls -> 0 | W28: FIRST SERVICE
F29: per day | G29: =L29*M29 -> 0 | L29: =ROUND(C29*IF(D29="days",1,IF(D29="months",365/12,IF(D29="year",365,0))),0) -> 0 | M29: =IFERROR(E29/IF(F29="per day",1,IF(F29="per month",365/12,IF(F29="per year",365,0))),0) -> 0 | N29: =L29*M29*NatBulls -> 0 | AA29: per Cow per Year
M30: Total Grazing | N30: =SUM(N25:N29) -> 710.1369863 | R30: per pound | S30: per cwt | T30: per ton | U30: per bushel | V30: total
B31: OTHER FEED COST | C31: Amount | D31: Measure | E31: Per Head or Total | F31: Time | G31: Period | H31: Price | I31: per Unit | J31: per Bull per year | L31: Pounds per Bull per Day | R31: pounds | S31: cwt | T31: tons | U31: bushel | V31: total | W31: Labour | X31: 8 | Y31: hours per | Z31: all cows | AA31: =IF(HerdSize=0,0,X31*WageRate/IF(Z31="all cows",HerdSize,1)) -> 0.96
N32: Price per Pound | O32: Herd Total | W32: Materials | X32: 2 | Y32: dollars per | Z32: head | AA32: =IF(HerdSize=0,0,X32/IF(Z32="all cows",HerdSize,1)) -> 2
M33: Days | W33: Technician | X33: 15 | Y33: dollars per | Z33: head | AA33: =IF(HerdSize=0,0,X33/IF(Z33="all cows",HerdSize,1)) -> 15
B34: Hay | C34: 45 | D34: pounds | E34: per head | F34: 212 | G34: days | H34: 115 | I34: per ton | J34: =N34*M34*L34 -> 548.55 | L34: =C34*IF(D34="bushel",U34,IF(D34="tons",2000,IF(D34="cwt",100,IF(D34="pounds",1,0))))*IF(E34="per head",1,IF(E34="total",1/NatBulls,0))*IF(G34="days",1,IF(G34="months",12/365,IF(G34="year",1/365,0))) -> 45 | M34: =F34*IF(G34="days",1,IF(G34="months",365/12,IF(G34="year",365,0))) -> 212 | N34: =H34/IF(I34="per pound",1,IF(I34="per ton",2000,IF(I34="per cwt",100,IF(I34="per bushel",U34,IF(I34="total",O34,"Calc Error"))))) -> 0.0575 | O34: =J34*NatBulls -> 2194.2 | R34: per head | S34: total | U34: 56 | W34: Semen | X34: 20 | Y34: dollars per | Z34: head | AA34: =IF(HerdSize=0,0,X34/IF(Z34="all cows",HerdSize,1)) -> 20
B35: Supplement | C35: 60 | D35: pounds | E35: total | F35: 3 | G35: months | H35: 70 | I35: per ton | J35: =N35*M35*L35 -> 1.575 | L35: 0.4931506849 | M35: 91.25 | N35: 0.035 | O35: 6.3 | U35: 56 | Z35: Cows Bred after First Service | AA35: 60 | AB35: %
B36: Salt and Mineral | C36: 60 | D36: pounds | E36: total | F36: 1 | G36: year | H36: 120 | I36: per ton | J36: 0.9 | L36: 0.04109589041 | M36: 365 | N36: 0.06 | O36: 3.6 | U36: 56 | W36: SECOND SERVICE
B37: barley grain | C37: 7 | D37: pounds | E37: per head | F37: 120 | G37: days | H37: =(3.25*48)/1.102 -> 141.5607985 | I37: per ton | J37: 59.45553539 | L37: 7 | M37: 120 | N37: 0.07078039927 | O37: 237.8221416 | U37: 56 | AA37: per Cow per Year
I38: per pound | J38: 0 | L38: 0 | M38: 0 | N38: 0 | O38: 0 | U38: 56
I39: per pound | J39: 0 | L39: 0 | M39: 0 | N39: 0 | O39: 0 | U39: 56 | W39: Labour | X39: 5 | Y39: hours per | Z39: all cows | AA39: =IF(HerdSize=0,0,X39*WageRate*IF(Z39="all cows",1,IF(Z39="non-bred cow",(1-FirstAIPregRate/100)*HerdSize,HerdSize))/HerdSize) -> 0.6
I40: per pound | J40: 0 | L40: 0 | M40: 0 | N40: 0 | O40: 0 | U40: 56 | W40: Materials | X40: 2 | Y40: dollars per | Z40: non-bred cow | AA40: =IF(HerdSize=0,0,X40*IF(Z40="all cows",1,IF(Z40="non-bred cow",HerdSize*(1-FirstAIPregRate/100),HerdSize))/HerdSize) -> 0.8
I41: per pound | J41: 0 | L41: 0 | M41: 0 | N41: 0 | O41: 0 | U41: 56 | W41: Technician | X41: 15 | Y41: dollars per | Z41: non-bred cow | AA41: =IF(HerdSize=0,0,X41*IF(Z41="all cows",1,IF(Z41="non-bred cow",HerdSize*(1-FirstAIPregRate/100),HerdSize))/HerdSize) -> 6 | AD41: =IF(SecondAIPregRate=0,IF(FirstAIPregRate=0,0,FirstAIPregRate),SecondAIPregRate) -> 80
I42: per pound | J42: 0 | L42: 0 | M42: 0 | N42: 0 | O42: 0 | U42: 56 | W42: Semen | X42: 20 | Y42: dollars per | Z42: non-bred cow | AA42: =IF(HerdSize=0,0,X42*IF(Z42="all cows",1,IF(Z42="non-bred cow",HerdSize*(1-FirstAIPregRate/100),HerdSize))/HerdSize) -> 8 | AC42: =IF(SecondAIPregRate=0,"",IF(FirstAIPregRate>SecondAIPregRate,"COWS BRED AFTER 2ND SERVICE INCLUDES THOSE BRED IN 1ST SERVICE SO THIS VALUE MUST BE HIGHER THAN 1ST SERVICE","")) -> 
I43: per ton | J43: 0 | L43: 0 | M43: 0 | N43: 0 | O43: 0 | U43: 56 | Z43: Total Cows Bred in First and Second Service | AA43: 80 | AB43: %
W44: AI EQUIPMENT AND FACILITIES
B45: OTHER COST | C45: Amount | D45: Per Head or Total | E45: One Time or Annually | F45: per Bull per year | AA45: Annual Maint-enance
AB46: per Cow per Year
W47: Description | X47: Beg. Value | Y47: End Value | Z47: Life
B48: Labour and management | C48: 2000 | D48: total | E48: annually | F48: =IFERROR(IF(D48="total",C48/NatBulls,C48)/IF(E48="one time",$D$16,1),0) -> 500 | M48: Herd Total | R48: one time | S48: annually | W48: AI Corrals and Chutes | X48: 20000 | Y48: 5000 | Z48: 15 | AA48: 300 | AB48: =IF(HerdSize=0,0,IF(Z48=0,0,(X48-Y48)/Z48/HerdSize)) -> 10
B49: Marketing culls | C49: 50 | D49: per head | E49: one time | F49: 12.5 | W49: Nitrogen Tank | X49: 500 | Y49: 200 | Z49: 15 | AB49: =IF(HerdSize=0,0,IF(Z49=0,0,(X49-Y49)/Z49/HerdSize)) -> 0.2
B50: Insurance | C50: 4.75 | D50: per head | E50: annually | F50: =IFERROR(IF(D50="total",C50/NatBulls,C50)/IF(E50="one time",$D$16,1),0) -> 4.75 | AB50: =IF(HerdSize=0,0,IF(Z50=0,0,(X50-Y50)/Z50/HerdSize)) -> 0
B51: Veterinarian | C51: 50 | D51: per head | E51: one time | F51: 12.5 | AB51: =IF(HerdSize=0,0,IF(Z51=0,0,(X51-Y51)/Z51/HerdSize)) -> 0
B52: Miscellaneous | C52: 6.5 | D52: per head | E52: annually | F52: 6.5
B53: Building Costs | C53: 3.5 | D53: per head | E53: annually | F53: 3.5 | W53: BREEDING COST SUMMARY (Per Year)
B54: bedding - straw | C54: 30 | D54: per head | E54: annually | F54: 30
F55: =IFERROR(IF(D55="total",C55/NatBulls,C55)/IF(E55="one time",$D$16,1),0) -> 0
W56: AI | Z56: per Cow Inseminated | AA56: per Cow Bred Using AI
B57: BULL COST SUMMARY (Per Year)
Y58: Herd
W59: Sychronization | Y59: =IF(HerdSize=0,0,Z59*HerdSize) -> 1370 | Z59: =SUM(AA14:AA17) -> 13.7 | AA59: =IF(AIPregRate=0,0,Z59/(AIPregRate/100)) -> 17.125
F60: per Cow in the Herd | G60: per Pregnant Cow | W60: Heat Detection | Y60: =IF(HerdSize=0,0,Z60*HerdSize) -> 600 | Z60: =SUM(AA22:AA26) -> 6 | AA60: =IF(AIPregRate=0,0,Z60/(AIPregRate/100)) -> 7.5
I61: per Calf Produced
D62: All Bulls | E62: per Bull
B63: Annual Purchases Minus Culls | D63: =E63*$D$6 -> 1183.5 | E63: =(D15-H19)/D16 -> 295.875 | F63: =IF(HerdSize=0,0,D63/HerdSize) -> 11.835 | G63: =IF(HerdSize=0,0,IF(NatPregRate=0,0,D63/(HerdSize*NatPregRate/100))) -> 12.72580645 | I63: =IF(HerdSize=0,0,IF(NatWeanRate=0,0,D63/(HerdSize*NatWeanRate/100))) -> 12.72580645 | W63: AI Service | Y63: =IF(HerdSize=0,0,Z63*HerdSize) -> 5336 | Z63: =SUM(AA39:AA42,AA31:AA34) -> 53.36 | AA63: =IF(AIPregRate=0,0,Z63/(AIPregRate/100)) -> 66.7
B64: Injury Loss | D64: =E64*$D$6 -> 118.35 | E64: =D17*(H20-H19)/100 -> 29.5875 | F64: =IF(HerdSize=0,0,D64/HerdSize) -> 1.1835 | G64: =IF(HerdSize=0,0,IF(NatPregRate=0,0,D64/(HerdSize*NatPregRate/100))) -> 1.272580645 | I64: =IF(HerdSize=0,0,IF(NatWeanRate=0,0,D64/(HerdSize*NatWeanRate/100))) -> 1.272580645 | W64: Equipment and Facilities | Y64: =IF(HerdSize=0,0,Z64*HerdSize) -> 300 | Z64: =IF(HerdSize=0,0,SUM(AA48:AA51)/HerdSize) -> 3 | AA64: =IF(AIPregRate=0,0,Z64/(AIPregRate/100)) -> 3.75
B65: Death Loss | D65: =E65*$D$6 -> 232.66 | E65: =D18*H20/100 -> 58.165 | F65: =IF(HerdSize=0,0,D65/HerdSize) -> 2.3266 | G65: =IF(HerdSize=0,0,IF(NatPregRate=0,0,D65/(HerdSize*NatPregRate/100))) -> 2.50172043 | I65: =IF(HerdSize=0,0,IF(NatWeanRate=0,0,D65/(HerdSize*NatWeanRate/100))) -> 2.50172043 | W65: Total Cash | Y65: =SUM(Y59:Y64) -> 7606 | Z65: =IF(HerdSize=0,0,SUM(Z59:Z64)) -> 76.06 | AA65: =IF(AIPregRate=0,0,Z65/(AIPregRate/100)) -> 95.075
B66: Feed | D66: =E66*$D$6 -> 3152.059128 | E66: =SUM(G25:G29,J34:J43) -> 788.014782 | F66: =IF(HerdSize=0,0,D66/HerdSize) -> 31.52059128 | G66: =IF(HerdSize=0,0,IF(NatPregRate=0,0,D66/(HerdSize*NatPregRate/100))) -> 33.8931089 | I66: =IF(HerdSize=0,0,IF(NatWeanRate=0,0,D66/(HerdSize*NatWeanRate/100))) -> 33.8931089
B67: Other Cash | D67: =E67*$D$6 -> 2279 | E67: =SUM(F48:F55) -> 569.75 | F67: =IF(HerdSize=0,0,D67/HerdSize) -> 22.79 | G67: =IF(HerdSize=0,0,IF(NatPregRate=0,0,D67/(HerdSize*NatPregRate/100))) -> 24.50537634 | I67: =IF(HerdSize=0,0,IF(NatWeanRate=0,0,D67/(HerdSize*NatWeanRate/100))) -> 24.50537634 | W67: Depreciation on Equipment and Facilities | Y67: =IF(HerdSize=0,0,Z67*HerdSize) -> 1020 | Z67: =SUM(AB48:AB51) -> 10.2 | AA67: =IF(AIPregRate=0,0,Z67/(AIPregRate/100)) -> 12.75
C68: Total Cash | D68: =SUM(D63:D67) -> 6965.569128 | E68: =SUM(E63:E67) -> 1741.392282 | F68: =SUM(F63:F67) -> 69.65569128 | G68: =SUM(G63:G67) -> 74.89859277 | I68: =SUM(I63:I67) -> 74.89859277 | W68: Interest on AI Equipment Investment | Y68: =InterestRate/100*(SUM(X48:X51)+SUM(Y48:Y51))/2 -> 642.5 | Z68: =IF(HerdSize=0,0,Y68/HerdSize) -> 6.425 | AA68: =IF(AIPregRate=0,0,Z68/(AIPregRate/100)) -> 8.03125
W69: Total | Y69: =Y65+SUM(Y67:Y68) -> 9268.5 | Z69: =SUM(Z65:Z68) -> 92.685 | AA69: =IF(AIPregRate=0,0,Z69/(AIPregRate/100)) -> 115.85625
B70: Interest on Investment | D70: =E70*$D$6 -> 581.65 | E70: =H20*InterestRate/100 -> 145.4125 | F70: =IF(HerdSize=0,0,D70/HerdSize) -> 5.8165 | G70: =IF(HerdSize=0,0,IF(NatPregRate=0,0,D70/(HerdSize*NatPregRate/100))) -> 6.254301075 | I70: =IF(HerdSize=0,0,IF(NatWeanRate=0,0,D70/(HerdSize*NatWeanRate/100))) -> 6.254301075
C71: Total | D71: =D68+D70 -> 7547.219128 | E71: =E68+E70 -> 1886.804782 | F71: =F68+F70 -> 75.47219128 | G71: =G68+G70 -> 81.15289385 | I71: =I68+I70 -> 81.15289385 | W71: CLEAN-UP BULLS | AA71: per Cow Bred Using Clean-up Bulls
Z72: per Cow in the Herd
B74: PARTIAL BUDGET ANALYSIS SHOWING AI COSTS COMPARED TO NATURAL SERVICE | Y74: Herd
W75: Cash Cost | Y75: =E68*CleanupBulls -> 1741.392282 | Z75: =IF(HerdSize=0,0,Y75/HerdSize) -> 17.41392282 | AA75: =IF((AISystemPregRate-AIPregRate)=0,0,Z75/((AISystemPregRate-AIPregRate)/100)) -> 116.0928188
W76: Interest on Bull Investment | Y76: =E70*CleanupBulls -> 145.4125 | Z76: =IF(HerdSize=0,0,Y76/HerdSize) -> 1.454125 | AA76: =IF((AISystemPregRate-AIPregRate)=0,0,Z76/((AISystemPregRate-AIPregRate)/100)) -> 9.694166667
E77: per Calf Produced | F77: per Cow | G77: Herd Total | W77: Total | Y77: =SUM(Y75:Y76) -> 1886.804782 | Z77: =SUM(Z75:Z76) -> 18.86804782 | AA77: =SUM(AA75:AA76) -> 125.7869855
B79: Increased Value from AI | E79: 30 | F79: =IF(HerdSize=0,0,G79/HerdSize) -> 37.2 | G79: =E79*HerdSize*AIWeanRate/100+IF(AIWeanRate>NatWeanRate,(AIWeanRate-NatWeanRate)*HerdSize/100*(CalfValue),0) -> 3720 | W79: TOTAL BREEDING COST | AA79: per Pregnant Cow
B80: Cost of AI | E80: =IF(AIWeanRate=0,0,F80/(AIWeanRate/100)) -> 98.60106383 | F80: =IF(HerdSize=0,0,G80/HerdSize) -> 92.685 | G80: =Y69 -> 9268.5 | Z80: per Cow in the Herd | AB80: per Calf Produced
B81: Reduced Income if Pregnancy Rate Decreases with AI | E81: =IF(NatWeanRate=0,0,F81/(NatWeanRate/100)) -> 0 | F81: =IF(HerdSize=0,0,G81/HerdSize) -> 0 | G81: =IF(AIWeanRate=0,0,IF(NatWeanRate>AIWeanRate,(NatWeanRate-AIWeanRate)*HerdSize/100*CalfValue,0)) -> 0 | Y81: Herd
B82: Reduced Cost for Fewer Bulls | E82: =IF(AIWeanRate=0,0,F82/(AIWeanRate/100)) -> 60.21717389 | F82: =IF(HerdSize=0,0,G82/HerdSize) -> 56.60414346 | G82: =IF(AIWeanRate=0,0,E71*(NatBulls-CleanupBulls)) -> 5660.414346 | W82: All Cash Costs | Y82: =Y65+Y75 -> 9347.392282 | Z82: =IF(HerdSize=0,0,Y82/HerdSize) -> 93.47392282 | AA82: =IF(AISystemPregRate=0,0,$Z82/(AISystemPregRate/100)) -> 98.39360297 | AB82: =IF(AIWeanRate=0,0,$Z82/(AIWeanRate/100)) -> 99.44034343
W83: All Interest and Depreciation Costs | Y83: =Y67+Y76+Y68 -> 1807.9125 | Z83: =IF(HerdSize=0,0,Y83/HerdSize) -> 18.079125 | AA83: =IF(AISystemPregRate=0,0,$Z83/(AISystemPregRate/100)) -> 19.03065789 | AB83: =IF(AIWeanRate=0,0,$Z83/(AIWeanRate/100)) -> 19.2331117
C84: Expected Net Gain from AI | E84: =IF($Y$8=0,0,F84/($Y$8/100)) -> 1.190578148 | F84: =F79-F80+F82-F81 -> 1.119143459 | G84: =G79-G80+G82-G81 -> 111.9143459 | W84: Total | Y84: =SUM(Y82:Y83) -> 11155.30478 | Z84: =SUM(Z82:Z83) -> 111.5530478 | AA84: =SUM(AA82:AA83) -> 117.4242609 | AB84: =SUM(AB82:AB83) -> 118.6734551
Z87: =IF(($Y$84-$D$71+(NatWeanRate-AIWeanRate)*CalfValue)/(AIWeanRate*HerdSize/100)<=0,"Cost advantage per calf of using AI","Increased value per calf needed to cover AI costs.") -> Increased value per calf needed to cover AI costs. | AA87: =($Y$84-$D$71+(NatWeanRate-AIWeanRate)*CalfValue)/(AIWeanRate*HerdSize/100)*IF(($Y$84-$D$71+(NatWeanRate-AIWeanRate)*CalfValue)/(AIWeanRate*HerdSize/100)<=0,-1,1) -> 28.80942185
AD90: per cow | AE90: per calf | AF90: total

Sheet PreliminaryCompare (hidden)
G3: VS Natural Service
H4: GAINS | L4: LOSSES
D5: Expected Net Gain | G5: Expected Net Gain | H5: =Inputs!B118 -> Increased revenue from proposed change | I5: =Inputs!B127 -> Fewer bulls required (reduced cost/bull) | J5: =Inputs!B128 -> fewer replacements needed | K5: =Inputs!B129 -> heat detection labour | L5: =Inputs!I118 -> Decreased revenue from proposed change | M5: =Inputs!I126 -> Semen costs | N5: =Inputs!I127 -> AI technician | O5: =Inputs!I129 -> labour - AI treatment | P5: =Inputs!I130 -> breeding system treatment cost (drugs) | Q5: =Inputs!I131 -> AI supplies (syringes, etc.) | R5: =Inputs!I132 -> AI Equipment maintenance | S5: =Inputs!I133 -> Depreciation & interest on AI Equipment
D6: Select Synch | E6: 257.4795462 | F6: -162.5204538 | G6: -202.2315588 | H6: 1314.1986 | I6: 4120.944841 | J6: 2500 | K6: -140 | L6: 1224.875 | M6: 2200 | N6: 1100 | O6: 560 | P6: 850 | Q6: 100 | R6: 300 | S6: 1662.5
D7: Select Synch +CIDR | E7: 8428.075213 | F7: 8008.075213 | G7: 8444.757691 | H7: 7658.68785 | I7: 4120.944841 | J7: 9985 | K7: -120 | L7: 4497.375 | M7: 2300 | N7: 1150 | O7: 540 | P7: 2650 | Q7: 100 | R7: 300 | S7: 1662.5
D8: PG 6-day CIDR | E8: 8292.24188 | F8: 7872.24188 | G8: 8302.257691 | H8: 7658.68785 | I8: 4120.944841 | J8: 9985 | K8: -120 | L8: 4497.375 | M8: 2300 | N8: 1150 | O8: 580 | P8: 2752.5 | Q8: 100 | R8: 300 | S8: 1662.5
D9: MGA+PG | E9: 10440.74188 | F9: 10020.74188 | G9: 10460.75769 | H9: 7658.68785 | I9: 4120.944841 | J9: 9985 | K9: -120 | L9: 4497.375 | M9: 2300 | N9: 1150 | O9: 520 | P9: 654 | Q9: 100 | R9: 300 | S9: 1662.5
D10: Select Synch with E-AI and Cleanup AI | E10: 269.5495462 | F10: -11.85045378 | G10: -301.6790588 | H10: 1624.1511 | I10: 4120.944841 | J10: 2500 | K10: -80 | L10: 1224.875 | M10: 2500 | N10: 1250 | O10: 578 | P10: 851.4 | Q10: 100 | R10: 300 | S10: 1662.5
D11: Select Synch + CIDR with E-AI and Cleanup AI | E11: 8441.305213 | F11: 8021.305213 | G11: 8211.155191 | H11: 7825.58535 | I11: 4120.944841 | J11: 9985 | K11: -80 | L11: 4497.375 | M11: 2500 | N11: 1250 | O11: 558 | P11: 2772.5 | Q11: 100 | R11: 300 | S11: 1662.5
D12: PG 6 Day CIDR with E-AI and Cleanup AI | E12: 8521.99388 | F12: 8101.99388 | G12: 8279.811691 | H12: 8059.24185 | I12: 4120.944841 | J12: 9985 | K12: -120 | L12: 4497.375 | M12: 2500 | N12: 1250 | O12: 598 | P12: 2857.5 | Q12: 100 | R12: 300 | S12: 1662.5
D13: Co-synch_CIDRwithGnRH-7day | E13: 8264.74188 | F13: 7844.74188 | G13: 7874.757691 | H13: 7658.68785 | I13: 4120.944841 | J13: 9985 | K13: 0 | L13: 4497.375 | M13: 2500 | N13: 1250 | O13: 580 | P13: 3000 | Q13: 100 | R13: 300 | S13: 1662.5
D14: CO-Synch-CIDR-5day | E14: 8311.890546 | F14: 7891.890546 | G14: 7902.209191 | H14: 8226.13935 | I14: 4120.944841 | J14: 9985 | K14: 0 | L14: 4497.375 | M14: 2500 | N14: 1250 | O14: 620 | P14: 3500 | Q14: 100 | R14: 300 | S14: 1662.5
D15: Co-synch-CIDRwithEstradiol-7day | E15: 9007.827213 | F15: 8587.827213 | G15: 8615.311691 | H15: 8059.24185 | I15: 4120.944841 | J15: 9985 | K15: 0 | L15: 4497.375 | M15: 2500 | N15: 1250 | O15: 540 | P15: 2700 | Q15: 100 | R15: 300 | S15: 1662.5
H20: GAINS | L20: LOSSES
D21: Expected Net Gain | E21: VS Natural Service | H21: =Inputs!B134 -> Sub-total Decreased Costs ( B ) | I21: =Inputs!B143 -> 3. Agriculture and Forestry website: 'What is My Cereal Silage Crop Worth?' that estimates a multiplier of 12 times the barley price per bushel for the value of a ton of silage "at the pit" i.e. harvested and delivered by the grower | J21: =Inputs!B144 -> 4. Central Alfalfa Hay 1st cut, April to June AFSC Commodity Prices, 17/18/2018 | K21: =Inputs!B145 -> 5. July estimated price for Blue Salt and mineral blocks (55 lb units) as reported by several commercial feed suppliers. | L21: =Inputs!I134 -> Sub-total Increased Costs ( D ) | M21: =Inputs!I142 -> 0 | N21: =Inputs!I143 -> 0 | O21: =Inputs!I145 -> 0 | P21: =Inputs!I146 -> 0 | Q21: =Inputs!I147 -> 0 | R21: =Inputs!I148 -> 0 | S21: =Inputs!I149 -> 0
D22: Select Synch | E22: 257.4795462 | F22: -162.5204538 | G22: =IF(Inputs!$G$6=2,Inputs!$N$137) -> FALSE | H22: =IF(Inputs!$G$6=2,Inputs!$G$123) -> FALSE | I22: =IF(Inputs!$G$6=2,Inputs!$G$127) -> FALSE | J22: =IF(Inputs!$G$6=2,Inputs!$G$128) -> FALSE | K22: =IF(Inputs!$G$6=2,Inputs!$G$129) -> FALSE | L22: =IF(Inputs!$G$6=2, Inputs!$N$123) -> FALSE | M22: =IF(Inputs!$G$6=2,Inputs!$N$126) -> FALSE | N22: =IF(Inputs!$G$6=2,Inputs!$N$127) -> FALSE | O22: =IF(Inputs!$G$6=2,Inputs!$N$129) -> FALSE | P22: =IF(Inputs!$G$6=2,Inputs!$N$130) -> FALSE | Q22: =IF(Inputs!$G$6=2,Inputs!$N$131) -> FALSE | R22: =IF(Inputs!$G$6=2,Inputs!$N$132) -> FALSE | S22: =IF(Inputs!$G$6=2,Inputs!$N$133) -> FALSE
D23: Select Synch +CIDR | E23: 8428.075213 | F23: 8008.075213 | G23: =IF(Inputs!$G$6=3,Inputs!$N$137) -> 7543.23273 | H23: =IF(Inputs!$G$6=3,Inputs!$G$123) -> 6599.502 | I23: =IF(Inputs!$G$6=3,Inputs!$G$127) -> 4542.35573 | J23: =IF(Inputs!$G$6=3,Inputs!$G$128) -> 10380 | K23: =IF(Inputs!$G$6=3,Inputs!$G$129) -> -120 | L23: =IF(Inputs!$G$6=3, Inputs!$N$123) -> 5156.125 | M23: =IF(Inputs!$G$6=3,Inputs!$N$126) -> 2300 | N23: =IF(Inputs!$G$6=3,Inputs!$N$127) -> 1150 | O23: =IF(Inputs!$G$6=3,Inputs!$N$129) -> 540 | P23: =IF(Inputs!$G$6=3,Inputs!$N$130) -> 2650 | Q23: =IF(Inputs!$G$6=3,Inputs!$N$131) -> 100 | R23: =IF(Inputs!$G$6=3,Inputs!$N$132) -> 300 | S23: =IF(Inputs!$G$6=3,Inputs!$N$133) -> 1662.5
D24: PG 6-day CIDR | E24: 8292.24188 | F24: 7872.24188 | G24: =IF(Inputs!$G$6=4,Inputs!$N$137) -> FALSE | H24: =IF(Inputs!$G$6=4,Inputs!$G$123) -> FALSE | I24: =IF(Inputs!$G$6=4,Inputs!$G$127) -> FALSE | J24: =IF(Inputs!$G$6=4,Inputs!$G$128) -> FALSE | K24: =IF(Inputs!$G$6=4,Inputs!$G$129) -> FALSE | L24: =IF(Inputs!$G$6=4, Inputs!$N$123) -> FALSE | M24: =IF(Inputs!$G$6=4,Inputs!$N$126) -> FALSE | N24: =IF(Inputs!$G$6=4,Inputs!$N$127) -> FALSE | O24: =IF(Inputs!$G$6=4,Inputs!$N$129) -> FALSE | P24: =IF(Inputs!$G$6=4,Inputs!$N$130) -> FALSE | Q24: =IF(Inputs!$G$6=4,Inputs!$N$131) -> FALSE | R24: =IF(Inputs!$G$6=4,Inputs!$N$132) -> FALSE | S24: =IF(Inputs!$G$6=4,Inputs!$N$133) -> FALSE
D25: MGA+PG | E25: 10440.74188 | F25: 10020.74188 | G25: =IF(Inputs!$G$6=5,Inputs!$N$137) -> FALSE | H25: =IF(Inputs!$G$6=5,Inputs!$G$123) -> FALSE | I25: =IF(Inputs!$G$6=5,Inputs!$G$127) -> FALSE | J25: =IF(Inputs!$G$6=5,Inputs!$G$128) -> FALSE | K25: =IF(Inputs!$G$6=5,Inputs!$G$129) -> FALSE | L25: =IF(Inputs!$G$6=5, Inputs!$N$123) -> FALSE | M25: =IF(Inputs!$G$6=5,Inputs!$N$126) -> FALSE | N25: =IF(Inputs!$G$6=5,Inputs!$N$127) -> FALSE | O25: =IF(Inputs!$G$6=5,Inputs!$N$129) -> FALSE | P25: =IF(Inputs!$G$6=5,Inputs!$N$130) -> FALSE | Q25: =IF(Inputs!$G$6=5,Inputs!$N$131) -> FALSE | R25: =IF(Inputs!$G$6=5,Inputs!$N$132) -> FALSE | S25: =IF(Inputs!$G$6=5,Inputs!$N$133) -> FALSE
D26: Select Synch with E-AI and Cleanup AI | E26: 269.5495462 | F26: -11.85045378 | G26: =IF(Inputs!$G$6=6,Inputs!$N$137) -> FALSE | H26: =IF(Inputs!$G$6=6,Inputs!$G$123) -> FALSE | I26: =IF(Inputs!$G$6=6,Inputs!$G$127) -> FALSE | J26: =IF(Inputs!$G$6=6,Inputs!$G$128) -> FALSE | K26: =IF(Inputs!$G$6=6,Inputs!$G$129) -> FALSE | L26: =IF(Inputs!$G$6=6, Inputs!$N$123) -> FALSE | M26: =IF(Inputs!$G$6=6,Inputs!$N$126) -> FALSE | N26: =IF(Inputs!$G$6=6,Inputs!$N$127) -> FALSE | O26: =IF(Inputs!$G$6=6,Inputs!$N$129) -> FALSE | P26: =IF(Inputs!$G$6=6,Inputs!$N$130) -> FALSE | Q26: =IF(Inputs!$G$6=6,Inputs!$N$131) -> FALSE | R26: =IF(Inputs!$G$6=6,Inputs!$N$132) -> FALSE | S26: =IF(Inputs!$G$6=6,Inputs!$N$133) -> FALSE
D27: Select Synch + CIDR with E-AI and Cleanup AI | E27: 8441.305213 | F27: 8021.305213 | G27: =IF(Inputs!$G$6=7,Inputs!$N$137) -> FALSE | H27: =IF(Inputs!$G$6=7,Inputs!$G$123) -> FALSE | I27: =IF(Inputs!$G$6=7,Inputs!$G$127) -> FALSE | J27: =IF(Inputs!$G$6=7,Inputs!$G$128) -> FALSE | K27: =IF(Inputs!$G$6=7,Inputs!$G$129) -> FALSE | L27: =IF(Inputs!$G$6=7, Inputs!$N$123) -> FALSE | M27: =IF(Inputs!$G$6=7,Inputs!$N$126) -> FALSE | N27: =IF(Inputs!$G$6=7,Inputs!$N$127) -> FALSE | O27: =IF(Inputs!$G$6=7,Inputs!$N$129) -> FALSE | P27: =IF(Inputs!$G$6=7,Inputs!$N$130) -> FALSE | Q27: =IF(Inputs!$G$6=7,Inputs!$N$131) -> FALSE | R27: =IF(Inputs!$G$6=7,Inputs!$N$132) -> FALSE | S27: =IF(Inputs!$G$6=7,Inputs!$N$133) -> FALSE
D28: PG 6 Day CIDR with E-AI and Cleanup AI | E28: 8521.99388 | F28: 8101.99388 | G28: =IF(Inputs!$G$6=8,Inputs!$N$137) -> FALSE | H28: =IF(Inputs!$G$6=8,Inputs!$G$123) -> FALSE | I28: =IF(Inputs!$G$6=8,Inputs!$G$127) -> FALSE | J28: =IF(Inputs!$G$6=8,Inputs!$G$128) -> FALSE | K28: =IF(Inputs!$G$6=8,Inputs!$G$129) -> FALSE | L28: =IF(Inputs!$G$6=8, Inputs!$N$123) -> FALSE | M28: =IF(Inputs!$G$6=8,Inputs!$N$126) -> FALSE | N28: =IF(Inputs!$G$6=8,Inputs!$N$127) -> FALSE | O28: =IF(Inputs!$G$6=8,Inputs!$N$129) -> FALSE | P28: =IF(Inputs!$G$6=8,Inputs!$N$130) -> FALSE | Q28: =IF(Inputs!$G$6=8,Inputs!$N$131) -> FALSE | R28: =IF(Inputs!$G$6=8,Inputs!$N$132) -> FALSE | S28: =IF(Inputs!$G$6=8,Inputs!$N$133) -> FALSE
D29: Co-synch_CIDRwithGnRH-7day | E29: 8264.74188 | F29: 7844.74188 | G29: =IF(Inputs!$G$6=9,Inputs!$N$137) -> FALSE | H29: =IF(Inputs!$G$6=9,Inputs!$G$123) -> FALSE | I29: =IF(Inputs!$G$6=9,Inputs!$G$127) -> FALSE | J29: =IF(Inputs!$G$6=9,Inputs!$G$128) -> FALSE | K29: =IF(Inputs!$G$6=9,Inputs!$G$129) -> FALSE | L29: =IF(Inputs!$G$6=9, Inputs!$N$123) -> FALSE | M29: =IF(Inputs!$G$6=9,Inputs!$N$126) -> FALSE | N29: =IF(Inputs!$G$6=9,Inputs!$N$127) -> FALSE | O29: =IF(Inputs!$G$6=9,Inputs!$N$129) -> FALSE | P29: =IF(Inputs!$G$6=9,Inputs!$N$130) -> FALSE | Q29: =IF(Inputs!$G$6=9,Inputs!$N$131) -> FALSE | R29: =IF(Inputs!$G$6=9,Inputs!$N$132) -> FALSE | S29: =IF(Inputs!$G$6=9,Inputs!$N$133) -> FALSE
D30: CO-Synch-CIDR-5day | E30: 8311.890546 | F30: 7891.890546 | G30: =IF(Inputs!$G$6=10,Inputs!$N$137) -> FALSE | H30: =IF(Inputs!$G$6=10,Inputs!$G$123) -> FALSE | I30: =IF(Inputs!$G$6=10,Inputs!$G$127) -> FALSE | J30: =IF(Inputs!$G$6=10,Inputs!$G$128) -> FALSE | K30: =IF(Inputs!$G$6=10,Inputs!$G$129) -> FALSE | L30: =IF(Inputs!$G$6=10, Inputs!$N$123) -> FALSE | M30: =IF(Inputs!$G$6=10,Inputs!$N$126) -> FALSE | N30: =IF(Inputs!$G$6=10,Inputs!$N$127) -> FALSE | O30: =IF(Inputs!$G$6=10,Inputs!$N$129) -> FALSE | P30: =IF(Inputs!$G$6=10,Inputs!$N$130) -> FALSE | Q30: =IF(Inputs!$G$6=10,Inputs!$N$131) -> FALSE | R30: =IF(Inputs!$G$6=10,Inputs!$N$132) -> FALSE | S30: =IF(Inputs!$G$6=10,Inputs!$N$133) -> FALSE
D31: Co-synch-CIDRwithEstradiol-7day | E31: 9007.827213 | F31: 8587.827213 | G31: =IF(Inputs!$G$6=11,Inputs!$N$137) -> FALSE | H31: =IF(Inputs!$G$6=11,Inputs!$G$123) -> FALSE | I31: =IF(Inputs!$G$6=11,Inputs!$G$127) -> FALSE | J31: =IF(Inputs!$G$6=11,Inputs!$G$128) -> FALSE | K31: =IF(Inputs!$G$6=11,Inputs!$G$129) -> FALSE | L31: =IF(Inputs!$G$6=11, Inputs!$N$123) -> FALSE | M31: =IF(Inputs!$G$6=11,Inputs!$N$126) -> FALSE | N31: =IF(Inputs!$G$6=11,Inputs!$N$127) -> FALSE | O31: =IF(Inputs!$G$6=11,Inputs!$N$129) -> FALSE | P31: =IF(Inputs!$G$6=11,Inputs!$N$130) -> FALSE | Q31: =IF(Inputs!$G$6=11,Inputs!$N$131) -> FALSE | R31: =IF(Inputs!$G$6=11,Inputs!$N$132) -> FALSE | S31: =IF(Inputs!$G$6=11,Inputs!$N$133) -> FALSE
